bitfinex/quotes_SOLUSD_20260109
["timestamp","ask_amount","ask_price","bid_price","bid_amount"]
[1767987362137,0.67200568,135.91,135.87,4.54928873]
[1767987362343,0.67200568,135.91,135.87,11.90904371]
[1767987362518,0.67200568,135.91,135.89,12.07842976]
[1767987362714,0.67200568,135.91,135.88,19.43772348]
[1767987362918,0.67200568,135.91,135.87,19.4382039]
[1767987363113,0.67200568,135.91,135.88,7.35938686]
[1767987363314,0.69010015,135.9,135.86,19.43863599]
[1767987363540,0.69010015,135.9,135.86,7.36020623]
[1767987363714,0.69010015,135.9,135.87,12.07842976]
[1767987365625,0.69010015,135.9,135.87,19.43827847]
[1767987366210,0.69010015,135.9,135.86,7.36028061]
[1767987366509,0.69010015,135.9,135.87,7.35991164]
[1767987366713,0.69010015,135.9,135.87,19.4383414]
[1767987368625,0.69010015,135.9,135.87,12.07842976]
[1767987368827,0.69010015,135.9,135.87,19.43840041]
[1767987369932,0.69010015,135.9,135.87,12.07842976]
[1767987370138,0.69010015,135.9,135.87,7.35990023]
[1767987370340,0.69010015,135.9,135.87,19.43832999]
[1767987372043,0.69010015,135.88,135.83,19.44033506]
[1767987372536,0.69010015,135.87,135.83,7.3619053]
[1767987373026,0.69010015,135.87,135.83,19.44033506]
[1767987374552,0.69010015,135.87,135.84,12.07842976]
[1767987375822,25.51842976,135.9,135.85,7.36105999]
[1767987376023,19.43597546,135.92,135.87,12.07842976]
[1767987376221,171.25562067,135.96,135.91,12.07842976]
[1767987376437,7.35562067,135.96,135.91,12.07842976]
[1767987376639,19.43405043,135.96,135.91,12.07842976]
[1767987376818,19.43301224,135.97,135.92,12.07842976]
[1767987377838,0.69010015,135.96,135.92,12.07842976]
[1767987380243,0.69010015,135.95,135.92,12.07842976]
[1767987380428,0.69010015,135.95,135.93,12.07842976]
[1767987380935,0.66010016,135.95,135.93,12.07842976]
[1767987381133,7.35459164,135.97,135.93,12.07842976]
[1767987381330,0.2,136.0,135.94,12.07842976]
[1767987381540,33.07156874,136.0,135.95,12.07842976]
[1767987381937,20.99313898,136.0,135.95,12.07842976]
[1767987382136,33.07156874,136.0,135.95,19.43396312]
[1767987383044,0.69010015,135.99,135.95,19.43396312]
[1767987383243,0.69010015,135.99,135.95,12.07842976]
[1767987383648,0.69010015,135.99,135.95,19.43396998]
[1767987384447,0.69010015,135.99,135.96,12.07842976]
[1767987384750,0.69010015,135.99,135.94,8.0641721]
[1767987385047,0.69010015,135.99,135.96,4.54771915]
[1767987386147,0.69010015,135.98,135.94,7.35594903]
[1767987386352,0.69010015,135.98,135.94,11.90366818]
[1767987386851,0.69010015,135.98,135.95,4.54771915]
[1767987387543,0.69010015,135.99,135.96,4.54771915]
[1767987387743,0.69010015,135.99,135.94,8.06401963]
[1767987387926,0.69010015,135.99,135.96,4.54771915]
[1767987388131,0.2,136.0,135.97,4.54771915]
[1767987388348,0.2,136.0,135.98,4.54771915]
[1767987389444,0.2,136.0,135.97,11.90203695]
[1767987389938,0.2,136.04,136.0,0.52010014]
[1767987390250,0.2,136.04,136.0,7.8725739]
[1767987390431,0.2,136.04,136.01,4.54771915]
[1767987390750,0.2,136.04,136.0,7.8725739]
[1767987390751,0.2,136.04,136.02,2.90819657]
[1767987391350,0.89010015,136.04,135.99,7.67341757]
[1767987391531,0.89010015,136.04,136.0,10.2611173]
[1767987391939,0.89010015,136.04,136.01,2.90819657]
[1767987392838,0.89010015,136.04,136.02,2.90819657]
[1767987394056,0.2,136.04,136.02,2.90819657]
[1767987394350,0.86729399,136.04,136.01,10.2604016]
[1767987395859,0.86729399,136.04,136.02,2.90819657]
[1767987396060,0.86729399,136.04,136.0,7.67282849]
[1767987396262,0.86729399,136.04,135.97,13.72432314]
[1767987396263,0.66729399,136.02,135.97,7.35423221]
[1767987396442,0.66729399,136.02,135.98,2.90819657]
[1767987396851,0.66729399,136.02,135.99,2.90819657]
[1767987399142,0.66729399,136.02,135.98,10.26190028]
[1767987401159,0.66729399,136.01,135.97,10.26259856]
[1767987401547,0.66729399,136.01,135.98,10.26215886]
[1767987402281,0.66729399,136.03,136.0,2.90819657]
[1767987402559,0.66729399,136.03,136.0,1.45819657]
[1767987402749,0.66729399,136.03,136.0,2.3455907]
[1767987402948,0.66729399,136.03,136.0,2.90819657]
[1767987403160,20.97082247,136.04,136.0,3.6036196]
[1767987403865,21.06982247,136.04,136.0,3.6036196]
[1767987405463,13.719,136.04,136.0,10.95652657]
[1767987406039,0.56261105,136.03,136.0,10.2608463]
[1767987406344,0.56261105,136.03,136.0,7.35264973]
[1767987406544,0.56261105,136.03,135.99,10.26164769]
[1767987408050,23.97822513,136.04,136.0,0.69542303]
[1767987409185,103.975,136.06,136.03,0.71616904]
[1767987409480,0.2,136.06,136.04,2.90819657]
[1767987409660,0.76261105,136.06,136.04,2.90819657]
[1767987409860,0.76261105,136.06,136.03,2.90819657]
[1767987410196,0.76261105,136.06,136.01,0.71616904]
[1767987410497,0.10363611,136.05,136.02,2.90819657]
[1767987410671,0.2,136.06,136.02,3.62436561]
[1767987411263,0.56261105,136.05,136.02,2.90819657]
[1767987411674,0.56261105,136.05,136.02,10.25990467]
[1767987412374,0.56261105,136.05,136.03,2.90819657]
[1767987413086,0.2,136.06,136.03,2.90819657]
[1767987413296,0.299,136.06,136.04,7.35077918]
[1767987413493,0.2,136.06,135.99,76.03616904]
[1767987413687,2.90819657,136.05,136.0,7.3525745]
[1767987413883,2.90819657,136.05,136.01,0.71616904]
[1767987416480,2.90819657,136.04,136.0,0.71616904]
[1767987417097,2.90819657,136.03,136.0,0.71616904]
[1767987417399,2.90819657,136.02,135.98,0.71616904]
[1767987417982,10.26013345,136.02,135.98,0.71616904]
[1767987418701,2.90819657,136.01,135.97,0.71616904]
[1767987418999,2.90819657,136.0,135.96,0.71616904]
[1767987419390,7.35193688,136.02,135.96,0.71616904]
[1767987419590,2.90819657,136.01,135.96,0.71616904]
[1767987419798,2.90819657,136.01,135.96,3.62436561]
[1767987420000,7.35243399,136.01,135.97,0.71616904]
[1767987420185,2.90819657,136.02,135.98,0.71616904]
[1767987420502,2.90819657,136.01,135.96,0.71616904]
[1767987420711,2.90819657,135.99,135.96,0.71616904]
[1767987420879,2.90819657,135.98,135.94,0.71616904]
[1767987421082,2.90819657,135.99,135.95,0.71616904]
[1767987421397,2.90819657,136.0,135.95,8.07177001]
[1767987421784,2.90819657,135.99,135.95,0.71616904]
[1767987422400,10.26173151,135.99,135.95,0.71616904]
[1767987424207,10.2611271,136.01,135.96,0.70798338]
[1767987424504,4.88248381,136.0,135.97,0.70798338]
[1767987424707,7.35293053,136.01,135.97,0.70798338]
[1767987425300,10.2611271,136.01,135.97,0.70798338]
[1767987426800,7.35293053,136.01,135.97,0.70798338]
[1767987427008,10.2611271,136.01,135.97,0.70798338]
[1767987428413,18.37914986,136.03,135.95,0.70798338]
[1767987428414,4.88385056,136.0,135.95,0.70798338]
[1767987428620,25.73046942,136.03,135.95,0.70798338]
[1767987428621,7.79204713,135.99,135.95,0.70798338]
[1767987428914,2.90819657,135.99,135.95,0.70798338]
[1767987429097,2.90819657,135.99,135.96,0.70798338]
[1767987429414,2.90819657,135.98,135.94,0.70798338]
[1767987429603,2.90819657,135.96,135.92,0.70798338]
[1767987429789,2.90819657,135.95,135.92,0.70798338]
[1767987430900,10.26400461,135.95,135.92,0.70798338]
[1767987431691,2.90819657,135.94,135.9,0.70798338]
[1767987431898,2.90819657,135.94,135.89,13.42]
[1767987432219,2.90819657,135.94,135.9,0.70798338]
[1767987432518,2.90819657,135.93,135.9,0.70798338]
[1767987433896,0.28432314,135.97,135.87,0.70798338]
[1767987433897,2.90819657,135.92,135.87,0.70798338]
[1767987434097,2.90819657,135.92,135.88,0.70798338]
[1767987434620,10.26600479,135.92,135.88,0.70798338]
[1767987434995,7.35713794,135.93,135.88,0.70798338]
[1767987435199,10.26533451,135.93,135.88,0.70798338]
[1767987435513,2.90819657,135.92,135.88,0.70798338]
[1767987435927,10.26533451,135.93,135.89,0.70798338]
[1767987437319,2.90819657,135.93,135.89,8.06684367]
[1767987437702,10.26493202,135.93,135.89,8.06684367]
[1767987437924,10.26493202,135.93,135.89,0.70798338]
[1767987439218,2.90819657,135.92,135.89,0.70798338]
[1767987439416,25.74547996,135.95,135.89,0.70798338]
[1767987439718,2.90819657,135.92,135.89,0.70798338]
[1767987440219,25.74547996,135.95,135.9,0.70798338]
[1767987440394,7.35564545,135.95,135.9,0.70798338]
[1767987440599,2.90819657,135.94,135.9,0.70798338]
[1767987441409,10.26458735,135.94,135.9,0.70798338]
[1767987443024,2.90819657,135.93,135.9,0.70798338]
[1767987443902,103.775,135.96,135.91,0.70798338]
[1767987444217,2.90819657,136.0,135.95,0.70798338]
[1767987444808,20.1201107,136.04,135.97,0.70798338]
[1767987444809,10.26025038,136.02,135.97,0.70798338]
[1767987444997,2.90819657,136.03,135.99,0.70798338]
[1767987446494,2.90819657,136.04,135.99,0.70798338]
[1767987446693,10.25860362,136.05,135.99,3.61617995]
[1767987446901,10.4580218,136.06,136.01,0.70798338]
[1767987447206,2.90819657,136.05,136.01,0.70798338]
[1767987448522,7.54982523,136.06,136.01,0.70798338]
[1767987448910,2.90819657,136.05,136.01,0.70798338]
[1767987449707,10.25845183,136.05,136.01,0.70798338]
[1767987449907,2.90819657,136.04,136.01,0.70798338]
[1767987450621,4.54536218,136.04,136.01,0.70798338]
[1767987451526,7.35025526,136.05,136.01,0.70798338]
[1767987451718,4.54536218,136.04,136.01,0.70798338]
[1767987451916,4.54536218,136.04,136.0,14.14798338]
[1767987451917,4.54536218,136.03,136.0,14.14798338]
[1767987452136,4.51536219,136.03,135.99,0.70798338]
[1767987452309,4.54536218,136.02,135.99,0.70798338]
[1767987455435,18.37694795,136.04,135.99,0.70798338]
[1767987455640,4.54536218,136.02,135.99,0.70798338]
[1767987455826,4.54536218,136.01,135.99,0.70798338]
[1767987456032,4.54536218,136.01,135.97,0.67862658]
[1767987456621,4.54536218,136.0,135.97,0.67862658]
[1767987457318,4.54536218,136.0,135.95,25.99948341]
[1767987457741,4.54536218,136.0,135.95,8.03412123]
[1767987457930,4.54536218,135.98,135.94,13.42]
[1767987458524,4.54536218,135.98,135.94,14.09862658]
[1767987459945,4.54536218,135.98,135.94,21.45481095]
[1767987461941,4.54536218,135.97,135.94,0.67862658]
[1767987462652,4.54536218,135.97,135.93,14.09862658]
[1767987462840,4.54536218,135.96,135.93,13.42]
[1767987463643,4.54536218,135.97,135.93,13.42]
[1767987464560,4.54536218,135.96,135.92,0.67862658]
[1767987464727,4.54536218,135.94,135.9,0.67862658]
[1767987464922,4.54536218,135.94,135.91,0.67862658]
[1767987465635,11.90156561,135.94,135.91,0.67862658]
[1767987465844,4.54536218,135.93,135.9,14.09862658]
[1767987467126,7.35620343,135.94,135.9,14.09862658]
[1767987467439,11.90156561,135.94,135.9,14.09862658]
[1767987468325,4.54536218,135.93,135.9,14.09862658]
[1767987468762,4.54536218,135.93,135.88,21.4517114]
[1767987468933,4.54536218,135.93,135.89,0.67245111]
[1767987469134,4.54536218,135.92,135.89,0.67245111]
[1767987469933,4.54536218,135.93,135.89,8.03133309]
[1767987471154,4.54536218,135.93,135.89,0.67245111]
[1767987471355,4.54536218,135.93,135.89,8.03111795]
[1767987471735,7.35510444,135.96,135.9,0.67245111]
[1767987471927,4.54536218,135.94,135.9,0.67245111]
[1767987472772,4.54536218,135.92,135.9,0.67245111]
[1767987473055,18.3877611,135.96,135.9,0.67245111]
[1767987473232,4.54536218,135.93,135.9,0.67245111]
[1767987474258,18.3877611,135.96,135.9,0.67245111]
[1767987474432,4.54536218,135.94,135.9,0.67245111]
[1767987474750,4.54536218,135.95,135.91,0.67245111]
[1767987476044,11.90184174,135.94,135.9,0.67245111]
[1767987476349,4.54536218,135.93,135.9,0.67245111]
[1767987476530,4.54536218,135.93,135.89,0.67245111]
[1767987477540,11.90228779,135.93,135.89,0.67245111]
[1767987481162,4.54536218,135.9,135.87,0.67245111]
[1767987481458,4.54536218,135.91,135.87,21.47233799]
[1767987481662,4.54536218,135.91,135.88,0.67245111]
[1767987482035,7.35692561,135.93,135.88,0.67245111]
[1767987482363,7.35640383,135.94,135.9,0.67245111]
[1767987482861,7.35640383,135.94,135.91,0.67245111]
[1767987484065,122.1622513,135.97,135.91,0.67245111]
[1767987484241,22.93261348,135.97,135.92,0.71673933]
[1767987484971,7.35524722,135.96,135.92,0.71673933]
[1767987485772,4.54536218,135.95,135.92,0.71673933]
[1767987486064,4.54536218,135.96,135.93,0.71673933]
[1767987486367,11.90017552,135.97,135.93,0.59679941]
[1767987486542,7.35481334,135.97,135.93,0.59679941]
[1767987486965,4.54536218,135.98,135.93,11.90158385]
[1767987487169,7.35348187,135.99,135.93,11.90158385]
[1767987487475,4.54536218,135.98,135.93,11.90158385]
[1767987487865,4.54536218,135.98,135.93,7.35622167]
[1767987488049,4.54536218,135.98,135.93,13.44]
[1767987488472,4.54536218,135.98,135.94,0.71673933]
[1767987488656,4.54536218,135.98,135.94,0.65673933]
[1767987489155,11.89948917,135.98,135.94,0.65673933]
[1767987491250,4.54536218,135.96,135.93,14.15673933]
[1767987492367,4.54536218,135.96,135.94,0.71673933]
[1767987492569,4.54536218,135.95,135.92,0.71673933]
[1767987493372,11.90110058,135.95,135.92,0.71673933]
[1767987494069,7.3557384,135.95,135.92,0.71673933]
[1767987495280,4.54536218,135.96,135.92,0.71673933]
[1767987495281,11.90070171,135.96,135.92,0.71673933]
[1767987495473,7.35533953,135.96,135.92,0.71673933]
[1767987495652,4.54536218,135.96,135.93,0.71673933]
[1767987495848,4.54536218,135.97,135.93,0.71673933]
[1767987497366,11.90000102,135.97,135.93,0.71673933]
[1767987497868,4.54536218,135.96,135.93,0.71673933]
[1767987498050,25.92017812,135.97,135.93,0.71673933]
[1767987498452,4.54536218,135.96,135.93,0.71673933]
[1767987498652,7.35463884,135.97,135.93,0.71673933]
[1767987498963,4.54536218,135.96,135.93,0.71673933]
[1767987499164,11.90000102,135.97,135.93,0.71673933]
[1767987501382,4.88159074,135.96,135.93,0.71673933]
[1767987501766,9.42695292,135.96,135.93,0.71673933]
[1767987501970,4.54536218,135.96,135.93,0.71673933]
[1767987502157,11.90053805,135.96,135.93,0.71673933]
[1767987504969,7.35517587,135.96,135.93,0.71673933]
[1767987505170,7.35479327,135.97,135.93,0.71673933]
[1767987505379,4.88521908,135.96,135.93,0.71673933]
[1767987506288,2.71021908,135.96,135.93,11.9019034]
[1767987506493,111.12871,135.99,135.95,4.54536218]
[1767987506657,7.35371,135.99,135.93,20.79654122]
[1767987506863,7.35371,135.99,135.94,4.54536218]
[1767987507373,12.61969952,135.99,135.93,20.79654122]
[1767987507573,12.61969952,135.99,135.93,13.44]
[1767987507574,0.72062734,135.97,135.93,13.44]
[1767987508284,0.72062734,135.97,135.93,20.79670035]
[1767987510057,0.72062734,135.96,135.9,7.35789879]
[1767987510383,0.72062734,135.96,135.91,13.44]
[1767987510384,0.72062734,135.95,135.91,13.44]
[1767987512373,8.07632072,135.95,135.91,13.44]
[1767987512575,8.07632072,135.95,135.91,16.35272493]
[1767987513588,0.71336701,135.98,135.93,2.91272493]
[1767987514691,7.3545635,135.97,135.93,2.91272493]
[1767987514879,8.06793051,135.97,135.93,2.91272493]
[1767987516174,8.06793051,135.97,135.92,7.35709342]
[1767987516175,0.71336701,135.96,135.92,7.35709342]
[1767987516385,0.71336701,135.96,135.92,10.26981835]
[1767987516568,8.06793051,135.97,135.92,10.26981835]
[1767987517388,0.71336701,135.96,135.92,10.26981835]
[1767987517872,0.71336701,135.95,135.91,13.44]
[1767987518074,0.71336701,135.94,135.91,13.44]
[1767987519973,0.71336701,135.94,135.91,16.35272493]
[1767987520595,8.06959503,135.94,135.91,16.35272493]
[1767987520969,8.06959503,135.94,135.91,16.29272493]
[1767987522096,0.71336701,135.94,135.91,16.29272493]
[1767987522271,5.60446638,135.94,135.92,2.91272493]
[1767987523096,7.35587047,135.95,135.93,2.91272493]
[1767987523390,7.35536886,135.96,135.94,2.85272493]
[1767987524494,25.74145881,135.97,135.94,2.91272493]
[1767987525098,0.71336701,135.96,135.94,2.91272493]
[1767987526096,8.06870882,135.96,135.95,2.91272493]
[1767987526298,8.06870882,135.96,135.95,2.85272493]
[1767987527081,0.71336701,135.95,135.91,21.43725141]
[1767987527389,7.35534181,135.96,135.94,1.43945895]
[1767987527596,7.35534181,135.96,135.95,2.91272493]
[1767987528100,7.35534181,135.96,135.93,0.69956928]
[1767987528282,25.74145881,135.97,135.95,2.91272493]
[1767987528486,25.74145881,135.97,135.95,2.85272493]
[1767987528786,25.74145881,135.97,135.93,0.69956928]
[1767987529188,25.74145881,135.97,135.94,2.91272493]
[1767987530195,25.74145881,135.97,135.93,0.69956928]
[1767987530494,25.74145881,135.97,135.93,3.61229421]
[1767987531507,25.74145881,135.97,135.93,0.69956928]
[1767987531700,25.74145881,135.97,135.93,3.61229421]
[1767987533307,25.74145881,135.97,135.95,0.69590963]
[1767987533914,25.74145881,135.97,135.94,3.60863456]
[1767987535110,12.25348087,135.96,135.94,3.60863456]
[1767987535405,4.89821704,135.95,135.94,0.69590963]
[1767987538610,7.35485587,135.97,135.94,3.60863456]
[1767987539984,7.35485587,135.97,135.94,0.69590963]
[1767987540490,7.35485587,135.97,135.93,2.91272493]
[1767987541087,2.91272493,135.96,135.9,14.13590963]
[1767987541301,25.74126463,135.97,135.92,3.60863456]
[1767987541515,2.91272493,135.96,135.93,0.69590963]
[1767987542607,7.35564545,135.95,135.93,0.69590963]
[1767987544411,7.35564545,135.95,135.92,0.65434765]
[1767987544598,2.91272493,135.93,135.89,0.65434765]
[1767987545516,117.215,135.96,135.9,3.56707258]
[1767987545816,2.91272493,135.94,135.9,3.56707258]
[1767987546609,25.74531849,135.95,135.91,0.65434765]
[1767987546817,28.65804342,135.95,135.91,0.65434765]
[1767987547612,2.91272493,135.94,135.91,0.65434765]
[1767987548694,10.26913906,135.94,135.91,0.65434765]
[1767987551195,2.91272493,135.94,135.91,0.65434765]
[1767987552602,10.26901972,135.94,135.91,0.65434765]
[1767987552915,10.26901972,135.94,135.89,10.92589534]
[1767987553324,10.26901972,135.94,135.9,0.65434765]
[1767987553817,28.65804342,135.95,135.9,0.65434765]
[1767987554825,10.26907976,135.94,135.9,0.65434765]
[1767987556221,28.65804342,135.95,135.9,0.65434765]
[1767987559121,10.2691454,135.94,135.9,0.65434765]
[1767987560924,7.35642047,135.94,135.9,0.65434765]
[1767987561126,103.775,136.01,135.93,2.91272493]
[1767987561305,2.91272493,135.99,135.94,0.65434765]
[1767987561627,2.91272493,135.98,135.94,0.65434765]
[1767987562433,7.3545635,135.97,135.94,0.65434765]
[1767987562904,7.35427298,135.98,135.94,0.65434765]
[1767987564307,2.91272493,135.98,135.94,0.65434765]
[1767987567016,10.26710644,135.98,135.94,0.65434765]
[1767987570133,2.91272493,135.98,135.94,0.65434765]
[1767987570840,21.2973432,135.99,135.94,0.65434765]
[1767987572523,10.26710093,135.98,135.94,0.65434765]
[1767987572930,7.35294117,136.0,135.95,0.6706965]
[1767987573320,2.91272493,135.99,135.95,0.6706965]
[1767987573938,7.35294117,136.0,135.95,0.6706965]
[1767987574150,10.26650386,135.99,135.95,0.6706965]
[1767987574320,2.91272493,135.97,135.92,0.6706965]
[1767987574643,4.5502231,135.97,135.93,0.6706965]
[1767987575338,4.5502231,135.95,135.9,8.02867422]
[1767987575530,4.5502231,135.95,135.91,0.6706965]
[1767987575933,4.5502231,135.97,135.91,5.2209196]
[1767987576236,7.35510444,135.96,135.91,12.57863418]
[1767987576543,7.35510444,135.96,135.92,4.5502231]
[1767987576742,7.35510444,135.96,135.92,5.2209196]
[1767987578528,7.35510444,135.96,135.92,0.6706965]
[1767987578730,7.35510444,135.96,135.92,5.2209196]
[1767987578929,7.35510444,135.96,135.93,0.6706965]
[1767987582344,11.90532754,135.96,135.91,0.6706965]
[1767987582545,4.5502231,135.95,135.91,0.6706965]
[1767987583244,7.35618655,135.94,135.91,0.6706965]
[1767987584052,4.5502231,135.93,135.9,0.6706965]
[1767987584218,30.29687603,135.94,135.9,0.6706965]
[1767987584424,25.74665293,135.94,135.9,0.6706965]
[1767987584619,30.29687603,135.94,135.9,0.6706965]
[1767987584852,30.29687603,135.94,135.88,4.5502231]
[1767987584853,4.5502231,135.91,135.88,0.6706965]
[1767987585327,11.90856661,135.91,135.88,0.6706965]
[1767987585721,7.35834351,135.91,135.88,0.6706965]
[1767987585926,11.90767835,135.92,135.88,0.6706965]
[1767987586348,7.35745525,135.92,135.88,0.6706965]
[1767987587022,11.90767835,135.92,135.88,0.6706965]
[1767987587860,4.5502231,135.89,135.86,0.2]
[1767987588050,4.5502231,135.89,135.86,0.8706965]
[1767987588750,25.7506277,135.92,135.85,0.66859466]
[1767987588751,4.5502231,135.88,135.85,0.66859466]
[1767987588946,0.28432314,135.91,135.85,0.66859466]
[1767987589151,4.5502231,135.88,135.85,0.66859466]
[1767987589760,11.91003627,135.88,135.85,0.66859466]
[1767987590554,7.359093,135.89,135.85,0.66859466]
[1767987590744,11.9093161,135.89,135.85,0.66859466]
[1767987593446,11.9093161,135.89,135.84,4.5502231]
[1767987593447,4.5502231,135.86,135.82,0.66859466]
[1767987593648,25.75632605,135.89,135.82,0.66859466]
[1767987593838,4.5502231,135.85,135.82,0.66859466]
[1767987595844,11.91132848,135.85,135.82,0.66859466]
[1767987597172,4.5502231,135.84,135.82,0.66859466]
[1767987597868,11.91193125,135.84,135.82,0.66859466]
[1767987598856,11.91152108,135.85,135.82,0.66859466]
[1767987600253,7.36129798,135.85,135.82,0.66859466]
[1767987600458,4.5502231,135.84,135.82,0.66859466]
[1767987601142,11.91152108,135.85,135.82,0.66859466]
[1767987602072,7.35781031,135.91,135.84,0.66859466]
[1767987602272,4.5502231,135.9,135.86,0.66859466]
[1767987602571,4.5502231,135.9,135.85,4.5502231]
[1767987602749,7.35781031,135.91,135.86,4.5502231]
[1767987602946,7.35618655,135.94,135.88,5.20888531]
[1767987603256,18.38853348,135.96,135.91,4.5502231]
[1767987603648,18.38853348,135.96,135.91,5.20888531]
[1767987603863,25.74363792,135.96,135.91,5.20888531]
[1767987604171,25.74363792,135.96,135.88,0.65866221]
[1767987604172,4.5502231,135.93,135.88,0.65866221]
[1767987604475,4.5502231,135.93,135.88,5.20888531]
[1767987605174,4.5502231,135.93,135.88,12.56827542]
[1767987605379,4.5502231,135.93,135.88,5.20888531]
[1767987605557,4.5502231,135.93,135.88,0.65866221]
[1767987605762,4.5502231,135.92,135.86,5.20888531]
[1767987605953,7.35781031,135.91,135.87,5.20888531]
[1767987606354,7.35781031,135.91,135.87,4.5502231]
[1767987607869,18.39115044,135.94,135.88,5.20888531]
[1767987608076,30.29756009,135.94,135.88,5.20888531]
[1767987609169,30.29756009,135.94,135.89,0.65866221]
[1767987609662,7.35726898,135.92,135.89,0.65866221]
[1767987610063,7.35693459,135.93,135.89,5.20888531]
[1767987610459,7.35693459,135.93,135.9,0.65866221]
[1767987611155,4.5502231,135.92,135.88,0.65866221]
[1767987611360,4.5502231,135.9,135.86,0.65866221]
[1767987611560,11.90903097,135.9,135.86,0.65866221]
[1767987611864,7.35880787,135.9,135.86,0.65866221]
[1767987612183,11.90903097,135.9,135.86,0.65866221]
[1767987614479,4.5502231,135.88,135.84,0.65866221]
[1767987615397,25.75468719,135.9,135.86,0.65866221]
[1767987615584,30.30491029,135.9,135.86,0.65866221]
[1767987615788,30.30491029,135.9,135.85,0.65866221]
[1767987615961,30.30491029,135.9,135.85,5.20888531]
[1767987621197,25.75468719,135.9,135.86,0.65866221]
[1767987621399,30.30491029,135.9,135.86,0.65866221]
[1767987621895,25.75468719,135.9,135.87,0.65866221]
[1767987622394,30.30491029,135.9,135.87,0.65866221]
[1767987623579,7.35880787,135.9,135.87,0.65866221]
[1767987626596,7.35880787,135.9,135.88,0.65866221]
[1767987626774,111.13304777,135.91,135.89,0.65866221]
[1767987628617,18.39404535,135.92,135.89,0.65866221]
[1767987628618,7.35747901,135.92,135.89,0.65866221]
[1767987629408,7.35747901,135.92,135.89,0.59866221]
[1767987630878,11.96695082,135.93,135.89,0.59866221]
[1767987632103,30.35877013,135.93,135.89,0.59866221]
[1767987633203,4.5502231,135.92,135.89,0.59866221]
[1767987634111,7.35781031,135.91,135.89,0.59866221]
[1767987634311,7.35781031,135.91,135.89,0.53866221]
[1767987634492,7.35781031,135.91,135.89,0.47866221]
[1767987635211,7.35781031,135.91,135.89,0.41866221]
[1767987637925,7.45681031,135.91,135.87,3.58311833]
[1767987640511,0.099,135.91,135.87,3.58311833]
[1767987641514,7.45681031,135.91,135.87,3.58311833]
[1767987641809,7.35781031,135.91,135.88,0.66844504]
[1767987642019,7.35781031,135.91,135.89,0.66844504]
[1767987642514,7.35781031,135.91,135.89,0.60844504]
[1767987643392,7.45626898,135.92,135.89,0.60844504]
[1767987644319,7.35726898,135.92,135.89,0.60844504]
[1767987644622,7.45626898,135.92,135.89,0.60844504]
[1767987644790,7.35726898,135.92,135.89,0.60844504]
[1767987645210,7.45626898,135.92,135.89,0.60844504]
[1767987646901,0.099,135.92,135.89,0.60844504]
[1767987649250,7.35672772,135.93,135.9,3.62220146]
[1767987649527,104.075,135.95,135.92,0.70752817]
[1767987649528,7.35646167,135.94,135.92,0.70752817]
[1767987649904,7.35646167,135.94,135.92,0.64752817]
[1767987650909,7.35646167,135.94,135.9,2.91467329]
[1767987651310,29.0428605,135.94,135.88,7.35928071]
[1767987651513,29.0428605,135.94,135.89,2.91467329]
[1767987652230,0.38463664,135.92,135.85,18.54408662]
[1767987652415,3.29930993,135.92,135.87,2.91467329]
[1767987652610,7.35781031,135.91,135.87,2.91467329]
[1767987652814,7.35781031,135.91,135.88,0.70752817]
[1767987653033,8.07347292,135.91,135.88,0.70752817]
[1767987654213,8.07968688,135.92,135.88,3.62220146]
[1767987654821,10.99436017,135.92,135.88,0.70752817]
[1767987657533,8.07968688,135.92,135.88,0.70752817]
[1767987657739,7.35618655,135.94,135.9,3.62220146]
[1767987657916,7.35618655,135.94,135.91,3.62220146]
[1767987658327,7.35618655,135.94,135.92,0.70752817]
[1767987658619,7.35618655,135.94,135.91,0.70752817]
[1767987658815,8.07519286,135.94,135.91,0.70752817]
[1767987659132,28.66132622,135.94,135.9,0.70752817]
[1767987659331,3.29593245,135.93,135.9,0.70752817]
[1767987660235,7.35726898,135.92,135.9,0.70752817]
[1767987660845,7.35726898,135.92,135.89,0.70752817]
[1767987663536,122.86582761,135.95,135.91,0.68453076]
[1767987663716,122.86582761,135.95,135.86,0.14216157]
[1767987663717,0.7013918,135.94,135.9,2.91467329]
[1767987664942,8.05757835,135.94,135.9,2.91467329]
[1767987665130,8.05757835,135.94,135.89,2.91467329]
[1767987665336,8.05757835,135.94,135.9,2.91467329]
[1767987665843,8.05757835,135.94,135.9,3.59920405]
[1767987668743,8.05827099,135.93,135.9,3.59920405]
[1767987668942,7.35687919,135.93,135.9,3.59920405]
[1767987669132,7.35687919,135.93,135.91,0.68453076]
[1767987669529,103.775,135.95,135.93,0.68453076]
[1767987670027,111.13080444,135.95,135.93,0.62453076]
[1767987671843,0.7013918,135.94,135.86,19.13675658]
[1767987672047,0.7013918,135.94,135.89,0.68453076]
[1767987672048,0.7013918,135.93,135.89,0.68453076]
[1767987672227,0.7013918,135.93,135.9,0.68453076]
[1767987673953,0.7013918,135.93,135.88,7.35915326]
[1767987673954,103.775,135.95,135.93,0.68453076]
[1767987674247,8.0567555,135.96,135.92,3.59920405]
[1767987674840,8.0567555,135.96,135.93,0.68453076]
[1767987677454,104.4763918,135.98,135.94,0.68453076]